fUST/lending_fUST_20250701
["ID","MTS","AMOUNT","RATE_DAILY","PERIOD"]
[368853126,1751376685201,-281.925789,0.00025216,7]
[368853127,1751376685211,-281.925789,0.00025216,7]
[368853128,1751376685220,-281.925798,0.00025216,7]
[368853129,1751376685231,-1066.563368,0.00025216,2]
[368853130,1751376685242,-1066.563368,0.00025216,2]
[368853131,1751376685251,-151.0,0.00025216,7]
[368853132,1751376685262,-1066.563368,0.00025216,2]
[368853133,1751376685271,-1066.56336,0.00025216,2]
[368853134,1751376685280,-151.0,0.00025216,7]
[368853135,1751376685289,-151.0,0.00025216,7]
[368853136,1751376685299,-151.0,0.00025216,7]
[368853137,1751376685310,-151.0,0.00025216,7]
[368853138,1751376685320,-151.0,0.00025216,7]
[368853139,1751376685330,-159.486442,0.00025216,7]
[368853140,1751376685339,-159.486452,0.00025216,7]
[368853141,1751376685349,-297.882111,0.00025216,7]
[368853142,1751376685358,-297.882111,0.00025216,7]
[368853143,1751376685368,-297.882111,0.00025216,7]
[368853144,1751376685377,-297.882113,0.00025216,7]
[368853145,1751376685387,-151.0,0.00025216,7]
[368853146,1751376685396,-151.0,0.00025216,7]
[368853147,1751376685406,-155.67567,0.00025216,7]
[368853148,1751376685415,-623306.77764869,0.00025224,20]
[368853149,1751376685430,-24428.80866417,0.00025224,20]
[368853150,1751376685441,-42718.50355377,0.00025224,20]
[368853151,1751376685567,-460.0,0.00017268,2]
[368853152,1751376685577,-460.0,0.00017269,2]
[368853153,1751376685588,-460.0,0.00017269,2]
[368853154,1751376685598,-574.86,0.00017543,2]
[368853155,1751376685608,-460.0,0.00017543,2]
[368853156,1751376685618,-270.52,0.00017817,2]
[368853157,1751376685628,-5033.71506345,0.00020643,2]
[368853158,1751376685638,-151.0,0.000231,7]
[368853159,1751376685647,-151.0,0.00024521,7]
[368853160,1751376685657,-500.0,0.00025151,2]
[368853161,1751376685667,-500.0,0.00025179,2]
[368853162,1751376685677,-500.0,0.00025206,2]
[368853163,1751376685686,-3094.27091256,0.00025224,20]
[368853164,1751376685698,-572.325,0.00025224,20]
[368853165,1751376685773,-207.253768,0.00019329,2]
[368853166,1751376685783,-500.0,0.00021917,2]
[368853167,1751376685793,-442.546232,0.00021917,2]
[368853168,1751376685807,-57.453768,0.00021917,2]
[368853169,1751376685816,-500.0,0.00021917,2]
[368853170,1751376685825,-123.1361121,0.00021917,2]
[368853171,1751376685836,-376.8638879,0.00021917,2]
[368853172,1751376685847,-500.0,0.00021917,2]
[368853173,1751376685857,-500.0,0.00021917,2]
[368853174,1751376685867,-500.0,0.00021917,2]
[368853175,1751376685877,-2346.97470877,0.0002379,10]
[368853176,1751376685890,-110.83529123,0.0002379,10]
[368853177,1751376685901,-151.0,0.0002465,7]
[368853178,1751376685910,-151.0,0.000249,7]
[368853179,1751376685919,-713.52970877,0.000249,14]
[368853180,1751376685968,-138.83940361,0.00021917,2]
[368853181,1751376685980,-361.16059639,0.00021917,2]
[368853182,1751376685990,-786.47029123,0.000249,14]
[368853183,1751376686000,-151.0,0.00025,7]
[368853184,1751376686010,-10852.31890704,0.00025224,20]
[368853185,1751376686022,-1360.95259135,0.00025224,20]
[368853186,1751376686035,-4437.07270901,0.00025224,20]
[368853187,1751376686047,-18950.54593,0.00025224,20]
[368853188,1751376686058,-300.83,0.00025224,20]
[368853189,1751376686154,-151.0,0.00019329,2]
[368853190,1751376686163,-157.100231,0.00019999,2]
[368853191,1751376686173,-16.55544413,0.00021283,2]
[368853192,1751376686184,-2784.2999999,0.00021283,2]
[368853193,1751376686201,-2232.85961942,0.00021283,2]
[368853194,1751376686211,-207.98067115,0.00021917,2]
[368853195,1751376686221,-1500.0,0.000249,14]
[368853196,1751376686230,-1500.0,0.000249,14]
[368853197,1751376686240,-1500.0,0.000249,14]
[368853198,1751376686250,-1500.0,0.000249,14]
[368853199,1751376686259,-1500.0,0.000249,14]
[368853200,1751376686269,-1500.0,0.000249,14]
[368853201,1751376686278,-1500.0,0.000249,14]
[368853202,1751376686287,-1500.0,0.000249,14]
[368853203,1751376686296,-26794.56340158,0.00025224,20]
[368853204,1751376686363,-20804.55976438,0.00025224,20]
[368853205,1751376686376,-13852.11543143,0.00025224,20]
[368853206,1751376686387,-254.88887083,0.00025224,20]
[368853207,1751376686398,-3389.4060538,0.00025224,20]
[368853208,1751376686410,-1018.25966148,0.00025224,20]
[368853210,1751376822452,200.0,0.00025224,60]
[368853211,1751376884862,13666.23013854,0.00016269,2]
[368853212,1751376884891,11233.76986146,0.00016269,2]
[368853217,1751377088380,279.9301901,0.00016269,2]
[368853222,1751377137204,-460.0,0.00017265,2]
[368853223,1751377137226,-460.0,0.00017265,2]
[368853224,1751377137247,-460.0,0.00017265,2]
[368853225,1751377137269,-40000.0,0.00017266,2]
[368853226,1751377137290,-460.0,0.00017267,2]
[368853227,1751377137311,-407.75375632,0.00017267,2]
[368853228,1751377137332,-460.0,0.00017267,2]
[368853229,1751377137353,-297.0,0.00017267,2]
[368853230,1751377137373,-460.0,0.00017267,2]
[368853231,1751377137393,-402.7584995,0.00017267,2]
[368853232,1751377137413,-460.0,0.00017267,2]
[368853233,1751377137434,-460.0,0.00017267,2]
[368853234,1751377137456,-460.0,0.00017267,2]
[368853235,1751377137477,-460.0,0.00017267,2]
[368853236,1751377137498,-460.0,0.00017267,2]
[368853237,1751377137518,-460.0,0.00017267,2]
[368853238,1751377137548,-463.46,0.00017267,2]
[368853239,1751377137576,-460.0,0.00017267,2]
[368853240,1751377137598,-460.0,0.00017267,2]
[368853241,1751377137620,-460.0,0.00017267,2]
[368853242,1751377137643,-460.0,0.00017267,2]
[368853243,1751377137666,-460.0,0.00017267,2]
[368853244,1751377137688,-460.0,0.00017267,2]
[368853245,1751377137714,-460.0,0.00017267,2]
[368853246,1751377137738,-460.0,0.00017267,2]
[368853247,1751377137759,-460.0,0.00017267,2]
[368853248,1751377137785,-460.0,0.00017267,2]
[368853249,1751377137808,-195.11150249,0.00017267,2]
[368853250,1751377137833,-598.22,0.00017267,2]
[368853251,1751377137856,-500.0,0.00017267,2]
[368853252,1751377137880,-500.0,0.00017267,2]
[368853253,1751377137904,-500.0,0.00017267,2]
[368853254,1751377137926,-439.73215037,0.00017267,2]
[368853255,1751377137950,-500.0,0.00017267,2]
[368853256,1751377137975,-580.57182731,0.00017267,2]
[368853257,1751377137999,-500.0,0.00017267,2]
[368853258,1751377138023,-500.0,0.00017267,2]
[368853259,1751377138046,-500.0,0.00017267,2]
[368853260,1751377138071,-517.61130612,0.00017267,2]
[368853261,1751377138094,-500.0,0.00017267,2]
[368853262,1751377138117,-500.0,0.00017267,2]
[368853263,1751377138141,-500.0,0.00017267,2]
[368853264,1751377138164,-500.0,0.00017267,2]
[368853265,1751377138187,-500.0,0.00017267,2]
[368853266,1751377138210,-500.0,0.00017267,2]
[368853267,1751377138233,-460.0,0.00017267,2]
[368853268,1751377138256,-460.0,0.00017267,2]
[368853269,1751377138278,-433.16174355,0.00017267,2]
[368853270,1751377138300,-620.5923377,0.00017267,2]
[368853271,1751377138328,-460.0,0.00017267,2]
[368853272,1751377138350,-460.0,0.00017267,2]
[368853273,1751377138372,-460.0,0.00017268,2]
[368853274,1751377138395,-460.0,0.00017268,2]
[368853275,1751377138416,-460.0,0.00017268,2]
[368853276,1751377138438,-460.0,0.00017268,2]
[368853277,1751377138461,-460.0,0.00017268,2]
[368853278,1751377138486,-460.0,0.00017268,2]
[368853279,1751377138509,-460.0,0.00017268,2]
[368853280,1751377138531,-460.0,0.00017268,2]
[368853281,1751377138555,-460.0,0.00017268,2]
[368853282,1751377138577,-460.0,0.00017268,2]
[368853283,1751377138599,-460.0,0.00017268,2]
[368853284,1751377138621,-460.0,0.00017268,2]
[368853285,1751377138644,-460.0,0.00017268,2]
[368853286,1751377138666,-460.0,0.00017268,2]
[368853287,1751377138689,-460.0,0.00017268,2]
[368853288,1751377138712,-460.0,0.00017268,2]
[368853289,1751377138736,-460.0,0.00017268,2]
[368853290,1751377138759,-460.0,0.00017268,2]
[368853291,1751377138783,-460.96619257,0.00017268,2]
[368853292,1751377138805,-460.0,0.00017268,2]
[368853293,1751377138827,-460.0,0.00017268,2]
[368853294,1751377138848,-205.31566697,0.00017268,2]
[368853295,1751377138870,-460.0,0.00017268,2]
[368853296,1751377138894,-70.7450171,0.00017268,2]
[368853302,1751377505140,-171.93302246,0.00017164,2]
[368853303,1751377505163,-110.05725684,0.00017165,2]
[368853304,1751377512540,-61.87576561,0.00017165,2]
[368853305,1751377512563,-149.32744939,0.00017165,2]
[368853306,1751377541814,-22.60557306,0.00017165,2]
[368853307,1751377541839,-211.22444542,0.00017263,2]
[368853308,1751377550454,-88.77555458,0.00017263,2]
[368853309,1751377550479,-550.0,0.00017263,2]
[368853310,1751377550502,-55.40863302,0.00017264,2]
[368853311,1751377558048,323.80570921,0.000171,2]
[368853312,1751377562017,356.058894,0.00013699,2]
[368853313,1751377581155,-248.34,0.00017258,3]
[368853314,1751377581177,-39.65077554,0.00017263,2]
[368853315,1751377583939,-183.32674217,0.00017263,2]
[368853316,1751377585419,-77.02248229,0.00017263,2]
[368853317,1751377585441,-123.57536271,0.00017263,2]
[368853318,1751377589576,405.9435708,0.000171,2]
[368853319,1751377589605,65.37394691,0.000171,2]
[368853320,1751377605592,606.5414158,0.000171,2]
[368853323,1751377643091,-175.59177326,0.00017262,2]
[368853324,1751377649694,-124.40822674,0.00017262,2]
[368853325,1751377649715,-132.8538002,0.00017263,2]
[368853330,1751377684075,3505.38802178,0.000171,2]
[368853331,1751377745099,-161.92244318,0.00017163,2]
[368853332,1751377745120,-20899.88766796,0.00017263,2]
[368853333,1751377745141,-367.1461998,0.00017263,2]
[368853334,1751377745162,-500.0,0.00017263,2]
[368853335,1751377745187,-500.0,0.00017263,2]
[368853336,1751377745208,-500.0,0.00017263,2]
[368853337,1751377745229,-500.0,0.00017263,2]
[368853338,1751377745252,-179.973,0.00017263,2]
[368853339,1751377745273,-500.0,0.00017263,2]
[368853340,1751377745295,-500.0,0.00017263,2]
[368853341,1751377745316,-500.0,0.00017263,2]
[368853342,1751377745337,-500.0,0.00017263,2]
[368853343,1751377745357,-1026.42463729,0.00017263,2]
[368853344,1751377745378,-460.0,0.00017263,2]
[368853345,1751377745399,-460.0,0.00017263,2]
[368853346,1751377745420,-460.0,0.00017263,2]
[368853347,1751377745440,-533.53107947,0.00017263,2]
[368853348,1751377745460,-460.0,0.00017263,2]
[368853349,1751377745481,-443.46265963,0.00017263,2]
[368853350,1751377745506,-460.0,0.00017263,2]
[368853351,1751377745529,-460.0,0.00017263,2]
[368853352,1751377745551,-460.0,0.00017263,2]
[368853353,1751377745572,-460.0,0.00017263,2]
[368853354,1751377745593,-460.0,0.00017263,2]
[368853355,1751377745614,-460.0,0.00017263,2]
[368853356,1751377745634,-307.36143173,0.00017263,2]
[368853357,1751377745654,-460.0,0.00017263,2]
[368853358,1751377745676,-460.0,0.00017263,2]
[368853359,1751377745698,-482.36,0.00017263,2]
[368853360,1751377745718,-429.10236389,0.00017263,2]
[368853361,1751377745738,-460.0,0.00017263,2]
[368853362,1751377745762,-565.13,0.00017263,2]
[368853363,1751377745784,-460.0,0.00017263,2]
[368853364,1751377745806,-460.0,0.00017263,2]
[368853365,1751377745826,-247.50545671,0.00017264,2]
[368853366,1751377746075,-460.0,0.00017264,2]
[368853367,1751377746099,-460.0,0.00017264,2]
[368853368,1751377746121,-107.63481232,0.00017264,2]
[368853369,1751377746169,-274.48253419,0.00017264,2]
[368853370,1751377746192,-460.0,0.00017264,2]
[368853371,1751377746216,-450.40303806,0.00017264,2]
[368853372,1751377746239,-460.0,0.00017264,2]
[368853373,1751377746265,-460.0,0.00017264,2]
[368853374,1751377746288,-460.0,0.00017264,2]
[368853375,1751377746309,-582.59050944,0.00017264,2]
[368853376,1751377746331,-460.0,0.00017264,2]
[368853377,1751377746351,-460.0,0.00017264,2]
[368853378,1751377746372,-460.0,0.00017264,2]
[368853379,1751377746394,-460.0,0.00017264,2]
[368853380,1751377746416,-460.0,0.00017264,2]
[368853381,1751377746438,-460.0,0.00017264,2]
[368853382,1751377746459,-460.0,0.00017264,2]
[368853383,1751377746481,-460.0,0.00017264,2]
[368853384,1751377746504,-460.0,0.00017264,2]
[368853385,1751377746525,-460.0,0.00017264,2]
[368853386,1751377746547,-947.54,0.00017264,2]
[368853387,1751377746569,-460.0,0.00017264,2]
[368853388,1751377746592,-636.34,0.00017264,2]
[368853389,1751377746614,-460.0,0.00017264,2]
[368853390,1751377746636,-460.0,0.00017264,2]
[368853391,1751377746658,-460.0,0.00017264,2]
[368853392,1751377746678,-556.97184242,0.00017264,2]
[368853393,1751377746701,-460.0,0.00017264,2]
[368853394,1751377746722,-460.0,0.00017264,2]
[368853395,1751377746746,-460.0,0.00017264,2]
[368853396,1751377746767,-500.0,0.00017264,2]
[368853397,1751377746788,-500.0,0.00017264,2]
[368853398,1751377746808,-460.0,0.00017264,2]
[368853399,1751377746830,-460.0,0.00017264,2]
[368853400,1751377746852,-460.0,0.00017264,2]
[368853401,1751377746874,-460.0,0.00017264,2]
[368853402,1751377746896,-460.0,0.00017264,2]
[368853403,1751377746918,-460.0,0.00017264,2]
[368853404,1751377746940,-460.0,0.00017264,2]
[368853405,1751377746961,-594.41911813,0.00017264,2]
[368853406,1751377746983,-460.0,0.00017264,2]
[368853407,1751377747006,-460.0,0.00017264,2]
[368853408,1751377747029,-808.9,0.00017264,2]
[368853409,1751377747050,-333.63538196,0.00017264,2]
[368853410,1751377747074,-460.0,0.00017264,2]
[368853411,1751377747095,-460.0,0.00017264,2]
[368853412,1751377747116,-228.98355165,0.00017264,2]
[368853413,1751377747137,-460.0,0.00017264,2]
[368853414,1751377747158,-460.0,0.00017264,2]
[368853415,1751377747183,-574.63,0.00017264,2]
[368853416,1751377747207,-1544.05266719,0.00017264,2]
[368853417,1751377749151,-452.3345428,0.00017263,2]
[368853418,1751377749182,-378.72733281,0.00017264,2]
[368853419,1751377749205,-460.0,0.00017264,2]
[368853420,1751377749229,-460.0,0.00017264,2]
[368853421,1751377749254,-460.0,0.00017264,2]
[368853422,1751377749278,-460.0,0.00017264,2]
[368853423,1751377749299,-460.0,0.00017264,2]
[368853424,1751377749321,-460.0,0.00017264,2]
[368853425,1751377749342,-461.88657365,0.00017264,2]
[368853426,1751377749363,-460.0,0.00017264,2]
[368853427,1751377749383,-460.29668499,0.00017264,2]
[368853428,1751377749404,-460.0,0.00017264,2]
[368853429,1751377749431,-460.0,0.00017264,2]
[368853430,1751377749451,-460.0,0.00017264,2]
[368853431,1751377749472,-460.0,0.00017264,2]
[368853432,1751377749494,-460.0,0.00017264,2]
[368853433,1751377749516,-460.0,0.00017264,2]
[368853434,1751377749537,-460.0,0.00017264,2]
[368853435,1751377749558,-389.2549829,0.00017264,2]
[368853436,1751377749580,-460.0,0.00017264,2]
[368853437,1751377749601,-500.0,0.00017264,2]
[368853438,1751377749622,-307.81250526,0.00017264,2]
[368853439,1751377749644,-500.0,0.00017264,2]
[368853440,1751377749667,-256.40027912,0.00017264,2]
[368853441,1751377749688,-500.0,0.00017264,2]
[368853442,1751377749709,-412.32791428,0.00017264,2]
[368853443,1751377749732,-500.0,0.00017264,2]
[368853444,1751377749757,-500.0,0.00017264,2]
[368853445,1751377749780,-500.0,0.00017264,2]
[368853446,1751377749807,-500.0,0.00017264,2]
[368853447,1751377749830,-500.0,0.00017264,2]
[368853448,1751377749851,-500.0,0.00017264,2]
[368853449,1751377749875,-500.0,0.00017264,2]
[368853450,1751377749897,-460.0,0.00017264,2]
[368853451,1751377749922,-71.72511006,0.00017264,2]
[368853452,1751377753078,-460.0,0.00017263,2]
[368853453,1751377753100,-389.72053368,0.00017264,2]
[368853454,1751377753122,-460.0,0.00017264,2]
[368853455,1751377753143,-460.0,0.00017264,2]
[368853456,1751377753165,-460.0,0.00017264,2]
[368853457,1751377753190,-460.0,0.00017264,2]
[368853458,1751377753211,-498.61,0.00017264,2]
[368853459,1751377753236,-460.0,0.00017264,2]
[368853460,1751377753260,-159.7390273,0.00017264,2]
[368853461,1751377753281,-460.0,0.00017264,2]
[368853462,1751377753302,-460.0,0.00017264,2]
[368853463,1751377753324,-460.0,0.00017264,2]
[368853464,1751377753345,-292.74875181,0.00017264,2]
[368853465,1751377753366,-460.0,0.00017264,2]
[368853466,1751377753387,-460.0,0.00017264,2]
[368853467,1751377753408,-460.0,0.00017265,2]
[368853468,1751377753428,-390.04914362,0.00017265,2]
[368853469,1751377753448,-460.0,0.00017265,2]
[368853470,1751377753469,-460.0,0.00017265,2]
[368853471,1751377753490,-460.0,0.00017265,2]
[368853472,1751377753512,-460.0,0.00017265,2]
[368853473,1751377753534,-513.57313448,0.00017265,2]
[368853474,1751377753556,-460.0,0.00017265,2]
[368853475,1751377753577,-530.07907532,0.00017265,2]
[368853476,1751377753597,-460.0,0.00017265,2]
[368853477,1751377753617,-460.0,0.00017265,2]
[368853478,1751377753640,-460.0,0.00017265,2]
[368853479,1751377753661,-152.34256669,0.00017265,2]
[368853480,1751377753681,-460.0,0.00017265,2]
[368853481,1751377753702,-460.0,0.00017265,2]
[368853482,1751377753722,-460.0,0.00017265,2]
[368853483,1751377753743,-460.0,0.00017265,2]
[368853484,1751377753766,-523.82106521,0.00017265,2]
[368853485,1751377753787,-460.0,0.00017265,2]
[368853486,1751377753808,-460.0,0.00017265,2]
[368853487,1751377753829,-460.0,0.00017265,2]
[368853488,1751377753851,-460.0,0.00017265,2]
[368853489,1751377753872,-460.0,0.00017265,2]
[368853490,1751377753892,-460.0,0.00017265,2]
[368853491,1751377753913,-244.68830001,0.00017265,2]
[368853492,1751377760256,-460.0,0.00017263,2]
[368853493,1751377760280,-460.0,0.00017264,2]
[368853494,1751377760302,-215.31169999,0.00017265,2]
[368853495,1751377760323,-460.0,0.00017265,2]
[368853496,1751377760346,-460.0,0.00017265,2]
[368853497,1751377760368,-460.0,0.00017265,2]
[368853498,1751377760390,-460.0,0.00017265,2]
[368853499,1751377760410,-460.0,0.00017265,2]
[368853500,1751377760432,-460.0,0.00017265,2]
[368853501,1751377760453,-460.0,0.00017265,2]
[368853502,1751377760473,-460.0,0.00017265,2]
[368853503,1751377760495,-397.68976177,0.00017265,2]
[368853504,1751377762125,-314.12764299,0.00017263,2]
[368853505,1751377762148,-460.0,0.00017264,2]
[368853506,1751377762173,-62.31023823,0.00017265,2]
[368853507,1751377762196,-460.0,0.00017265,2]
[368853508,1751377762218,-460.0,0.00017265,2]
[368853509,1751377762241,-460.0,0.00017265,2]
[368853510,1751377762267,-460.0,0.00017265,2]
[368853511,1751377762288,-460.0,0.00017265,2]
[368853512,1751377762309,-391.64627168,0.00017265,2]
[368853513,1751377762331,-460.0,0.00017265,2]
[368853514,1751377762351,-460.0,0.00017265,2]
[368853515,1751377762372,-460.0,0.00017265,2]
[368853516,1751377762393,-460.0,0.00017265,2]
[368853517,1751377762413,-460.0,0.00017265,2]
[368853518,1751377762434,-500.0,0.00017265,2]
[368853519,1751377762455,-500.0,0.00017265,2]
[368853520,1751377762476,-548.70564214,0.00017265,2]
[368853521,1751377762496,-500.0,0.00017265,2]
[368853522,1751377762518,-460.0,0.00017265,2]
[368853523,1751377762537,-460.0,0.00017265,2]
[368853524,1751377762558,-460.0,0.00017265,2]
[368853525,1751377762579,-460.0,0.00017265,2]
[368853526,1751377762600,-460.0,0.00017265,2]
[368853527,1751377762622,-460.0,0.00017265,2]
[368853528,1751377762645,-460.0,0.00017265,2]
[368853529,1751377762666,-460.0,0.00017265,2]
[368853530,1751377762686,-460.0,0.00017265,2]
[368853531,1751377762707,-460.0,0.00017265,2]
[368853532,1751377762730,-460.0,0.00017265,2]
[368853533,1751377762750,-460.0,0.00017265,2]
[368853534,1751377762771,-567.53909451,0.00017265,2]
[368853535,1751377762793,-460.0,0.00017265,2]
[368853536,1751377762816,-460.0,0.00017265,2]
[368853537,1751377762837,-460.0,0.00017265,2]
[368853538,1751377762860,-460.0,0.00017265,2]
[368853539,1751377762881,-460.0,0.00017265,2]
[368853540,1751377762902,-460.0,0.00017265,2]
[368853541,1751377762923,-460.0,0.00017265,2]
[368853542,1751377762944,-460.0,0.00017265,2]
[368853543,1751377762966,-460.0,0.00017265,2]
[368853544,1751377762987,-460.0,0.00017265,2]
[368853545,1751377763009,-460.95246814,0.00017265,2]
[368853546,1751377763030,-166.781449,0.00017265,2]
[368853547,1751377763050,-522.394343,0.00017265,2]
[368853548,1751377763071,-460.0,0.00017265,2]
[368853549,1751377763091,-460.0,0.00017265,2]
[368853550,1751377763113,-460.0,0.00017265,2]
[368853551,1751377763135,-460.0,0.00017265,2]
[368853552,1751377763157,-460.0,0.00017265,2]
[368853553,1751377763183,-476.28237201,0.00017265,2]
[368853554,1751377763207,-460.0,0.00017265,2]
[368853555,1751377763231,-460.0,0.00017265,2]
[368853556,1751377763255,-460.0,0.00017265,2]
[368853557,1751377763277,-460.0,0.00017265,2]
[368853558,1751377763299,-71.2604783,0.00017265,2]
[368853559,1751377763329,-388.7395217,0.00017265,2]
[368853560,1751377763350,-460.0,0.00017265,2]
[368853561,1751377763372,-460.0,0.00017265,2]
[368853562,1751377763393,-460.0,0.00017265,2]
[368853563,1751377763415,-460.0,0.00017265,2]
[368853564,1751377763436,-460.0,0.00017265,2]
[368853565,1751377763459,-460.0,0.00017265,2]
[368853566,1751377763480,-460.0,0.00017265,2]
[368853567,1751377763502,-460.0,0.00017265,2]
[368853568,1751377763525,-460.0,0.00017265,2]
[368853569,1751377763546,-501.28541046,0.00017265,2]
[368853570,1751377763569,-460.0,0.00017265,2]
[368853571,1751377763590,-460.0,0.00017265,2]
[368853572,1751377763613,-460.0,0.00017265,2]
[368853573,1751377763632,-460.0,0.00017265,2]
[368853574,1751377763654,-411.09944615,0.00017265,2]
[368853575,1751377763675,-609.7036953,0.00017265,2]
[368853576,1751377763700,-460.0,0.00017265,2]
[368853577,1751377763722,-460.0,0.00017265,2]
[368853578,1751377763744,-460.0,0.00017265,2]
[368853579,1751377763768,-460.0,0.00017265,2]
[368853580,1751377763789,-460.73297358,0.00017265,2]
[368853581,1751377763811,-460.0,0.00017265,2]
[368853582,1751377763833,-462.88,0.00017265,2]
[368853583,1751377763855,-460.0,0.00017265,2]
[368853584,1751377763878,-460.0,0.00017265,2]
[368853585,1751377763900,-460.76530102,0.00017265,2]
[368853586,1751377763923,-500.0,0.00017265,2]
[368853587,1751377763946,-500.0,0.00017265,2]
[368853588,1751377763968,-460.0,0.00017265,2]
[368853589,1751377763989,-460.0,0.00017265,2]
[368853590,1751377764016,-460.0,0.00017265,2]
[368853591,1751377764038,-460.0,0.00017265,2]
[368853592,1751377764059,-460.0,0.00017265,2]
[368853593,1751377764080,-460.0,0.00017265,2]
[368853594,1751377764102,-460.0,0.00017265,2]
[368853595,1751377764123,-460.0,0.00017265,2]
[368853596,1751377764145,-460.0,0.00017265,2]
[368853597,1751377764168,-460.0,0.00017265,2]
[368853598,1751377764192,-460.19478999,0.00017265,2]
[368853599,1751377764214,-460.0,0.00017265,2]
[368853600,1751377764236,-466.79980517,0.00017265,2]
[368853601,1751377764260,-540.95113274,0.00017265,2]
[368853602,1751377764281,-560.0,0.00017265,2]
[368853603,1751377764302,-460.0,0.00017265,2]
[368853604,1751377764323,-460.0,0.00017265,2]
[368853605,1751377764344,-460.0,0.00017265,2]
[368853606,1751377764367,-460.0,0.00017265,2]
[368853607,1751377764389,-460.0,0.00017265,2]
[368853608,1751377764410,-460.0,0.00017265,2]
[368853609,1751377764432,-460.0,0.00017265,2]
[368853610,1751377764455,-460.0,0.00017265,2]
[368853611,1751377764478,-460.0,0.00017265,2]
[368853612,1751377764500,-460.0,0.00017265,2]
[368853613,1751377764523,-460.0,0.00017265,2]
[368853614,1751377764546,-460.0,0.00017265,2]
[368853615,1751377764567,-460.0,0.00017265,2]
[368853616,1751377764588,-607.07,0.00017265,2]
[368853617,1751377764610,-460.0,0.00017265,2]
[368853618,1751377764632,-460.0,0.00017265,2]
[368853619,1751377764655,-460.0,0.00017265,2]
[368853620,1751377764676,-460.0,0.00017265,2]
[368853621,1751377764698,-500.0,0.00017266,2]
[368853622,1751377764719,-460.0,0.00017267,2]
[368853623,1751377764741,-460.0,0.00017267,2]
[368853624,1751377764766,-466.56373465,0.00017267,2]
[368853625,1751377764787,-460.0,0.00017267,2]
[368853626,1751377764809,-460.0,0.00017267,2]
[368853627,1751377764830,-460.0,0.00017267,2]
[368853628,1751377764852,-460.0,0.00017267,2]
[368853629,1751377764873,-505.42580744,0.00017267,2]
[368853630,1751377764894,-460.0,0.00017267,2]
[368853631,1751377764917,-460.0,0.00017267,2]
[368853632,1751377764939,-500.0,0.00017267,2]
[368853633,1751377764963,-460.0,0.00017267,2]
[368853634,1751377764986,-500.0,0.00017267,2]
[368853635,1751377765011,-460.0,0.00017267,2]
[368853636,1751377765035,-460.0,0.00017267,2]
[368853637,1751377765057,-460.0,0.00017267,2]
[368853638,1751377765079,-462.01604624,0.00017267,2]
[368853639,1751377765102,-460.0,0.00017267,2]
[368853640,1751377765124,-460.0,0.00017267,2]
[368853641,1751377765146,-460.0,0.00017267,2]
[368853642,1751377765169,-460.0,0.00017267,2]
[368853643,1751377765195,-452.87329797,0.00017267,2]
[368853644,1751377765221,-460.0,0.00017267,2]
[368853645,1751377765246,-460.0,0.00017267,2]